lending/lending_fUSD_20240504
["ID","MTS","AMOUNT","RATE_DAILY","PERIOD"]
[325403507,1714849832352,-499.99,0.00010124,2]
[325403510,1714849832361,-150.99,0.00010124,2]
[325403512,1714849832372,-9847.92,0.00010124,2]
[325403514,1714849832381,-624.5,0.00010124,2]
[325403515,1714849832390,-999.99,0.00010124,2]
[325403516,1714849832399,-350.33,0.00010148,2]
[325403517,1714849832408,-341.09,0.00010152,2]
[325403518,1714849832417,-2528.0928301,0.00010165,2]
[325403519,1714849832426,-454.28999376,0.00010174,2]
[325403520,1714849832435,-287.85694374,0.00010174,2]
[325403521,1714849832444,-3082.73013439,0.00010174,2]
[325403522,1714849832454,-240.54048293,0.00010174,2]
[325403523,1714849832463,-662.79870583,0.00010174,2]
[325403524,1714849832473,-2179.38888725,0.00010174,2]
[325403525,1714849832483,-641.89480544,0.00010174,2]
[325403526,1714849832495,-404.42536249,0.00010174,2]
[325403527,1714849832505,-1064.21600245,0.00010174,2]
[325403528,1714849832514,-350.33,0.00010175,2]
[325403529,1714849832527,-2356.03750157,0.00010175,2]
[325403530,1714849832537,-6060.16,0.00010175,2]
[325403531,1714849832546,-551.53,0.00010175,2]
[325403532,1714849832556,-5262.21635328,0.00010175,2]
[325403533,1714849832565,-155.0,0.00010175,2]
[325403534,1714849832574,-17128.69108382,0.00010176,2]
[325403535,1714849832586,-397.56791311,0.00010176,2]
[325403536,1714849832599,-29931.02898532,0.00010176,2]
[325403537,1714849832609,-9210.76775434,0.00010186,7]
[325403538,1714849832619,-350.33,0.00010202,2]
[325403539,1714849832630,-350.33,0.00010229,2]
[325403540,1714849832639,-350.33,0.00010256,2]
[325403541,1714849832648,-350.33,0.00010283,2]
[325403542,1714849832658,-350.33,0.00010309,2]
[325403543,1714849832667,-350.33,0.00010336,2]
[325403544,1714849832677,-181.9451404,0.00010355,2]
[325403545,1714849832688,-738.65,0.00010541,2]
[325403546,1714849832698,-779.9,0.0001061,2]
[325403547,1714849832709,-2169.6693,0.00010685,2]
[325403548,1714849832719,-2491.32152706,0.00010723,2]
[325403549,1714849832728,-53867.16704407,0.00010724,2]
[325403550,1714849832741,-1275.75232492,0.00010724,2]
[325403552,1714849832753,-15333.18963268,0.00010724,2]
[325403554,1714849832764,-5615.33786295,0.00010724,2]
[325403557,1714849832778,-580.55865504,0.00010724,2]
[325403559,1714849832789,-564.72049553,0.00010724,2]
[325403561,1714849832801,-695.03036828,0.00010724,2]
[325403563,1714849832812,-925.42677561,0.00010724,2]
[325403566,1714849832825,-1488.679186,0.00010724,2]
[325403568,1714849832837,-1631.47463066,0.00010724,2]
[325403570,1714849832849,-456.76620795,0.00010724,2]
[325403572,1714849832860,-850.0,0.00010724,2]
[325403574,1714849832872,-500.71354731,0.00010724,2]
[325403577,1714849832919,-7270.26252295,0.00010724,2]
[325403578,1714849832932,-5499.44206622,0.00010724,2]
[325403579,1714849832943,-30832.3344385,0.00010724,2]
[325403580,1714849832955,-3159.7569,0.00010724,2]
[325403581,1714849832965,-4121.07153573,0.00010724,2]
[325403582,1714849832976,-11373.03455129,0.00010724,2]
[325403583,1714849832987,-2777.7159202,0.00010724,2]
[325403584,1714849832999,-17013.66514888,0.00010724,2]
[325403585,1714849833010,-408.75323981,0.00010724,2]
[325403586,1714849833022,-22629.25283946,0.00010724,2]
[325403587,1714849833034,-6808.3479369,0.00010724,2]
[325403588,1714849833045,-18689.70909248,0.00010724,2]
[325403589,1714849833057,-105833.81106516,0.00010724,2]
[325403590,1714849833069,-1147.00371487,0.00010859,2]
[325403591,1714849833079,-1295.14825201,0.00010932,2]
[325403592,1714849833088,-250.0,0.00010959,2]
[325403593,1714849833098,-150.0,0.00010959,2]
[325403594,1714849833111,-516.94839308,0.00010992,2]
[325403595,1714849833122,-210.0,0.00011051,2]
[325403596,1714849833131,-7504.35643882,0.00011206,2]
[325403597,1714849833141,-911.73,0.00011282,2]
[325403598,1714849833152,-1147.00371484,0.00011369,2]
[325403599,1714849833162,-20182.42610569,0.00011391,2]
[325403600,1714849833172,-3498.38014246,0.00011394,2]
[325403601,1714849833182,-169.73647769,0.000114,2]
[325403602,1714849833192,-1560.64174384,0.00011439,2]
[325403603,1714849833201,-622.01146866,0.00011506,2]
[325403604,1714849833211,-2362.15552941,0.00011507,2]
[325403605,1714849833223,-1337.83903376,0.00011507,2]
[325403606,1714849833233,-299.83721472,0.00011507,2]
[325403607,1714849833244,-155.87468371,0.00011507,2]
[325403608,1714849833505,-155.22961088,0.00011507,2]
[325403609,1714849833516,-1985.59487597,0.00011507,2]
[325403610,1714849833526,-1532.67439124,0.00011507,2]
[325403611,1714849833536,-248.485701,0.00011507,2]
[325403612,1714849833545,-164.14462552,0.00011507,2]
[325403613,1714849833555,-166.6544222,0.00011507,2]
[325403614,1714849833565,-248.35796841,0.00011507,2]
[325403615,1714849833576,-201.70925852,0.00011507,2]
[325403616,1714849833586,-191.19084347,0.00011507,2]
[325403617,1714849833595,-185.73028918,0.00011507,2]
[325403618,1714849833604,-155.0,0.00011507,2]
[325403619,1714849833613,-275.40928168,0.00011507,2]
[325403620,1714849833623,-155.0,0.00011508,2]
[325403621,1714849833632,-155.0,0.00011508,2]
[325403622,1714849833641,-2357.1227683,0.00011508,2]
[325403624,1714849833650,-684.65512334,0.00011508,2]
[325403625,1714849833659,-155.0,0.00011508,2]
[325403626,1714849833668,-408.65291693,0.00011509,2]
[325403627,1714849833678,-1858.14807,0.0001155,2]
[325403628,1714849833687,-250.42777297,0.00011697,2]
[325403629,1714849833695,-738.65,0.00011712,2]
[325403630,1714849833705,-150.0,0.00011781,2]
[325403631,1714849833714,-779.9,0.00011789,2]
[325403632,1714849833723,-937.57,0.00011808,2]
[325403633,1714849833732,-937.57,0.00011811,2]
[325403634,1714849833741,-937.57,0.00011814,2]
[325403635,1714849833751,-937.57,0.00011817,2]
[325403636,1714849833760,-937.57,0.0001182,2]
[325403637,1714849833769,-937.57,0.00011823,2]
[325403638,1714849833778,-937.57,0.00011826,2]
[325403639,1714849833787,-937.57,0.00011829,2]
[325403640,1714849833797,-937.57,0.00011832,2]
[325403641,1714849833806,-937.57,0.00011836,2]
[325403642,1714849833815,-937.57,0.00011839,2]
[325403643,1714849833824,-937.57,0.00011842,2]
[325403644,1714849833834,-937.57,0.00011845,2]
[325403645,1714849833843,-937.57,0.00011848,2]
[325403646,1714849833852,-937.57,0.00011851,2]
[325403647,1714849833862,-937.57,0.00011854,2]
[325403648,1714849833871,-937.57,0.00011857,2]
[325403649,1714849833880,-1858.14807,0.0001186,2]
[325403650,1714849833890,-937.57,0.0001186,2]
[325403651,1714849833899,-937.57,0.00011863,2]
[325403652,1714849833908,-937.57,0.00011867,2]
[325403653,1714849833918,-1147.00371484,0.0001188,2]
[325403654,1714849833927,-150.0,0.00011902,2]
[325403655,1714849833936,-150.0,0.00011922,2]
[325403656,1714849833945,-150.0,0.00011938,2]
[325403657,1714849833956,-150.0,0.00011958,2]
[325403658,1714849833967,-150.0,0.00011976,2]
[325403659,1714849833978,-354.25,0.00011978,2]
[325403660,1714849833987,-150.0,0.00011983,2]
[325403661,1714849833998,-150.0,0.00011998,2]
[325403662,1714849834008,-15013.42843875,0.00012,2]
[325403663,1714849834019,-8791.03966291,0.00012,2]
[325403664,1714849834028,-150.0,0.00012018,2]
[325403665,1714849834037,-150.0,0.00012044,2]
[325403666,1714849834048,-150.0,0.00012066,2]
[325403667,1714849834058,-150.0,0.0001209,2]
[325403668,1714849834069,-150.0,0.00012108,2]
[325403669,1714849834083,-150.0,0.00012122,2]
[325403670,1714849834093,-293.0,0.00012156,2]
[325403671,1714849834102,-150.0,0.0001216,2]
[325403672,1714849834111,-150.0,0.00012167,2]
[325403673,1714849834121,-1858.14807,0.0001217,2]
[325403674,1714849834131,-12381.17292307,0.00012191,2]
[325403675,1714849834143,-1008.9263289,0.00012191,2]
[325403676,1714849834157,-455.94522447,0.00012191,2]
[325403677,1714849834170,-1984.63552356,0.00012191,2]
[325403678,1714849834179,-496.62473321,0.00012334,2]
[325403679,1714849834191,-261.15578167,0.00012334,2]
[325403680,1714849834203,-2316.8344927,0.00012334,2]
[325403681,1714849834213,-955.02743439,0.00012348,2]
[325403682,1714849834222,-1147.00371484,0.0001239,2]
[325403683,1714849834231,-200.0,0.000124,4]
[325403684,1714849834241,-1858.14807,0.0001248,2]
[325403685,1714849834251,-1767.57991571,0.000125,2]
[325403686,1714849834260,-500.0,0.000125,4]
[325403687,1714849834269,-800.0,0.000126,4]
[325403688,1714849834280,-1100.0,0.000127,4]
[325403689,1714849834290,-150.0,0.00012721,2]
[325403690,1714849834299,-150.0,0.00012725,2]
[325403691,1714849834308,-150.0,0.00012731,2]
[325403692,1714849834318,-150.0,0.00012784,2]
[325403693,1714849834327,-150.0,0.00012788,2]
[325403694,1714849834336,-150.0,0.00012793,2]
[325403695,1714849834346,-1400.0,0.000128,4]
[325403696,1714849834355,-1858.14807,0.000128,2]
[325403697,1714849834364,-150.0,0.00012815,2]
[325403698,1714849834373,-150.0,0.00012829,2]
[325403699,1714849834383,-150.0,0.00012847,2]
[325403700,1714849834393,-1000.0,0.00012877,2]
[325403701,1714849834402,-1000.0,0.00012877,2]
[325403702,1714849834411,-1000.0,0.00012877,2]
[325403703,1714849834421,-1000.0,0.00012877,2]
[325403704,1714849834430,-1000.0,0.00012877,2]
[325403705,1714849834439,-1000.0,0.00012877,2]
[325403706,1714849834448,-1000.0,0.00012877,2]
[325403707,1714849834457,-1000.0,0.00012877,2]
[325403708,1714849834467,-1000.0,0.00012877,2]
[325403709,1714849834476,-1000.0,0.00012877,2]
[325403710,1714849834486,-1000.0,0.00012877,2]
[325403711,1714849834495,-1030.0,0.00012877,2]
[325403712,1714849834504,-738.65,0.00012883,2]
[325403713,1714849834514,-8355.86248075,0.00012898,2]
[325403714,1714849834524,-292.51131525,0.000129,2]
[325403715,1714849834535,-10000.0,0.000129,2]
[325403716,1714849834544,-5553.38241849,0.000129,2]
[325403717,1714849834553,-166.27153992,0.000129,2]
[325403718,1714849834562,-1147.00371484,0.000129,2]
[325403719,1714849834571,-200.0,0.000129,4]
[325403720,1714849834580,-209.67924472,0.000129,2]
[325403721,1714849834590,-153.6277786,0.000129,2]
[325403722,1714849834599,-3816.4161727,0.000129,2]
[325403723,1714849834608,-300.0,0.00012966,2]
[325403724,1714849834617,-779.9,0.00012968,2]
[325403725,1714849834626,-150.0,0.00012969,2]
[325403726,1714849834635,-1071.84695952,0.00012986,3]
[325403727,1714849834645,-212.3991975,0.00012989,2]
[325403728,1714849834655,-150.0,0.0001299,2]
[325403729,1714849834667,-279.370275,0.00012991,2]
[325403730,1714849834678,-346.3413525,0.00012991,2]
[325403731,1714849834689,-413.3124299,0.00012991,2]
[325403732,1714849834700,-480.2835074,0.00012991,2]
[325403733,1714849834711,-547.2545849,0.00012991,2]
[325403734,1714849834722,-10000.0,0.00012991,2]
[325403735,1714849834734,-300.0,0.00012992,2]
[325403736,1714849834745,-3053.89101221,0.00012998,2]
[325403737,1714849834757,-850.24097084,0.00012998,2]
[325403738,1714849834770,-1084.34492828,0.00012998,2]
[325403739,1714849834781,-1080.2368615,0.00012999,2]
[325403740,1714849834792,-250.08458953,0.00012999,2]
[325403741,1714849834802,-2780.36507871,0.00012999,2]
[325403742,1714849834812,-1046.28873654,0.00012999,2]
[325403743,1714849834825,-1234.12701109,0.00012999,2]
[325403744,1714849834844,-5724.45398716,0.00012999,2]
[325403745,1714849834855,-1995.13026521,0.00012999,2]
[325403746,1714849834864,-1995.26026185,0.00012999,2]
[325403747,1714849834875,-919.26358847,0.00012999,2]
[325403748,1714849834886,-1033.7,0.00012999,2]
[325403749,1714849834944,-3763.78429808,0.00012999,2]
[325403750,1714849834956,-456.22198162,0.00012999,2]
[325403751,1714849834968,-903.55095595,0.00012999,2]
[325403752,1714849834982,-518.40021227,0.00012999,2]
[325403753,1714849834993,-409.81870176,0.00012999,2]
[325403754,1714849835003,-137.61857992,0.00012999,2]
[325403755,1714849835014,-558.15546194,0.00012999,2]
[325403756,1714849835026,-1266.60175907,0.00012999,2]
[325403757,1714849835037,-923.58946258,0.00012999,2]
[325403758,1714849835048,-3208.90720903,0.00012999,2]
[325403759,1714849835060,-6.47444286,0.00012999,2]
[325403760,1714849835075,-207.13818223,0.00012999,2]
[325403761,1714849835084,-2332.68066338,0.00012999,2]
[325403762,1714849835096,-25.93296334,0.00012999,2]
[325403763,1714849835106,-1242.12592467,0.00013,2]
[325403764,1714849835119,-761.75219466,0.00013,2]
[325403765,1714849835131,-300.6296171,0.00013,2]
[325403766,1714849835142,-997.8724334,0.00013,2]
[325403767,1714849835154,-43449.42590275,0.00013,2]
[325403784,1714849838313,-6644.39960948,0.00012991,2]
[325403785,1714849838323,-1331657.77003481,0.00013,2]
[325403786,1714849838332,-229125.56407644,0.00013,2]
[325403787,1714849838342,-188.60134713,0.00013,2]
[325403788,1714849838352,-146423.700464,0.00013,2]
[325403789,1714849838362,-788116.93128246,0.00013,2]
[325403790,1714849838375,-4962.52051354,0.00013,2]
[325403791,1714849838466,-329.57502891,0.00013,2]
[325403792,1714849838480,-2481.26025677,0.00013,2]
[325403793,1714849838493,-21596.40641486,0.00013,2]
[325403794,1714849838505,-3757.48353988,0.00013,2]
[325403795,1714849838519,-9209.40585813,0.00013,2]
[325403799,1714849838661,-2483.29634496,0.00013,2]
[325403800,1714849838674,-32542.82611893,0.00013,2]
[325403826,1714849840324,-2549.68,0.00013,2]
[325403831,1714849840338,-309526.97850094,0.00013,2]
[325403876,1714849840584,-1022.04087,0.00012999,2]
[325403878,1714849840595,-157.26594336,0.00012999,2]
[325403880,1714849840604,-4451.13405664,0.00013,2]
[325403882,1714849840616,-586.83869362,0.00013,2]
[325403884,1714849840627,-409.45999997,0.00013,2]
[325403886,1714849840638,-3940.47964354,0.00013,2]
[325403888,1714849840650,-103255.72844741,0.00013,2]
[325403903,1714849840786,-999.70844943,0.00013,2]
[325403911,1714849840844,-335.2327,0.00013,2]
[325403926,1714849840953,-20360.99278176,0.00013,2]
[325403979,1714849843613,-179.70261938,0.00012999,2]
[325403980,1714849843628,-5827.01729691,0.00013,2]
[325403981,1714849843644,-5972.60867431,0.00013,2]
[325403982,1714849843778,-2759.5004898,0.00013,2]
[325403983,1714849843794,-1311.57406188,0.00013,2]
[325403984,1714849843809,-3959.850002,0.00013,2]
[325403985,1714849843946,-2245.5336603,0.00013,2]
[325403986,1714849843963,-2539.12149102,0.00013,2]
[325403987,1714849843978,-15850.4157125,0.00013,2]
[325403988,1714849843992,-536.2992376,0.00013,2]
[325403989,1714849844007,-636.87818,0.00013,2]
[325403994,1714849844250,-11451.47465665,0.00013,2]
[325403995,1714849844266,-2852.60108289,0.00013,2]
[325403996,1714849844282,-78621.17287899,0.00013,2]
[325404006,1714849846497,-589.65340668,0.00012999,2]
[325404007,1714849846509,-12971.82425504,0.00013,2]
[325404008,1714849846524,-823.29,0.00013,2]
[325404009,1714849846540,-1982.0994527,0.00013,2]
[325404010,1714849846555,-585.22668101,0.00013,2]
[325404011,1714849846572,-34512.39560653,0.00013,2]
[325404012,1714849846588,-7908.65581551,0.00013,2]
[325404013,1714849846605,-4648.45941549,0.00013,2]
[325404015,1714849846707,-1231.01326387,0.00013,2]
[325404018,1714849846722,-133452.68946284,0.00013,2]
[325404020,1714849846737,-296185.62410205,0.00013,2]
[325404023,1714849846752,-14806.0888339,0.00013,2]
[325404025,1714849846766,-1934.15722085,0.00013,2]
[325404080,1714850952111,-527.68736117,0.00010833,2]
[325404081,1714850952137,-524.56491145,0.00010834,2]
[325404082,1714850952162,-155.0,0.00010835,2]
[325404083,1714850952186,-539.72354301,0.00010844,2]
[325404084,1714850952211,-169.9918662,0.00010847,2]
[325404085,1714850952236,-500.0,0.00010958,2]
[325404086,1714851026682,-891.5869,0.00010739,2]
[325404087,1714851026718,-29108.4131,0.00010958,2]
[325404088,1714851031244,-30000.0,0.00010958,2]
[325404091,1714851032756,-12997.794,0.00010958,2]
[325404093,1714851032768,-2450.0,0.00010958,2]
[325404095,1714851032779,-411.33093268,0.00010958,2]
[325404097,1714851032791,-648.450036,0.00010958,2]
[325404292,1714851038663,-182524.13001053,0.00010958,2]
[325404293,1714851038673,-945.72390504,0.00010958,2]
[325404294,1714851038683,-150.0,0.00010993,2]
[325404295,1714851038692,-150.0,0.00010993,2]
[325404296,1714851038702,-155.0,0.00011587,2]
[325404297,1714851038711,-156.0,0.00011588,2]
[325404298,1714851038721,-2000.0,0.00011589,2]
[325404299,1714851038730,-184.66,0.00011592,2]
[325404300,1714851038739,-6610.23,0.00011598,2]
[325404301,1714851038748,-1171.79,0.00011598,2]
[325404302,1714851038757,-150.99,0.00011598,2]
[325404303,1714851038767,-150.99,0.00011598,2]
[325404304,1714851038776,-150.0,0.00011612,2]
[325404305,1714851038785,-166.14,0.00011613,2]
[325404307,1714851038794,-250.0,0.00011633,2]
[325404309,1714851038803,-250.0,0.00011652,2]
[325404311,1714851038813,-442.75,0.00011796,2]
[325404313,1714851038822,-195.26,0.00011816,2]
[325404315,1714851038832,-3832.87,0.00011816,2]
[325404317,1714851038841,-166.14,0.0001183,2]
[325404319,1714851038850,-164.02,0.00011914,2]
[325404321,1714851038859,-155.78,0.00011914,2]
[325404323,1714851038868,-164.02,0.00011921,2]
[325404325,1714851038878,-164.02,0.00011927,2]
[325404327,1714851038887,-164.02,0.00011934,2]
[325404329,1714851038896,-164.02,0.0001194,2]
[325404330,1714851038905,-164.02,0.00011947,2]
[325404331,1714851038914,-164.02,0.00011954,2]
[325404332,1714851038924,-156.27,0.0001196,2]
[325404333,1714851038933,-164.02,0.0001196,2]
[325404334,1714851038942,-164.02,0.00011967,2]
[325404335,1714851038952,-164.02,0.00011974,2]
[325404336,1714851038962,-254.09845851,0.00011998,2]
[325404337,1714851038971,-524.32453386,0.00011998,2]
[325404338,1714851038980,-1500.0,0.00011998,2]
[325404339,1714851038989,-236.8114536,0.00011998,2]
[325404340,1714851038999,-1000.0,0.00012,2]
[325404341,1714851039008,-15013.42843875,0.00012,2]
[325404342,1714851039017,-210.0,0.00012092,2]
[325404343,1714851039027,-210.0,0.00012092,2]
[325404344,1714851039036,-1295.14825201,0.00012349,2]
[325404345,1714851039046,-1559.4356232,0.00012669,2]
[325404346,1714851039055,-150.0,0.00012719,2]
[325404347,1714851039065,-150.0,0.00012721,2]
[325404348,1714851039074,-150.0,0.00012727,2]
[325404349,1714851039084,-150.0,0.00012732,2]
[325404350,1714851039093,-150.0,0.00012737,2]
[325404351,1714851039102,-150.0,0.00012738,2]
[325404352,1714851039111,-300.0,0.0001274,2]
[325404353,1714851039121,-150.0,0.0001274,2]
[325404354,1714851039130,-150.0,0.00012741,2]
[325404355,1714851039139,-150.0,0.00012741,2]
[325404356,1714851039149,-150.0,0.00012743,2]
[325404357,1714851039158,-150.0,0.00012748,2]
[325404358,1714851039168,-150.0,0.00012754,2]
[325404359,1714851039178,-150.0,0.00012758,2]
[325404360,1714851039188,-150.0,0.0001276,2]
[325404361,1714851039198,-150.0,0.00012766,2]
[325404362,1714851039207,-150.0,0.00012779,2]
[325404363,1714851039217,-150.0,0.00012779,2]
[325404364,1714851039226,-150.0,0.00012781,2]
[325404365,1714851039235,-150.0,0.00012786,2]
[325404366,1714851039245,-150.0,0.00012789,2]
[325404367,1714851039254,-150.0,0.00012793,2]
[325404368,1714851039264,-150.0,0.00012793,2]
[325404369,1714851039273,-150.0,0.00012796,2]
[325404370,1714851039283,-150.0,0.00012797,2]
[325404371,1714851039293,-150.0,0.000128,2]
[325404372,1714851039382,-150.0,0.00012803,2]
[325404373,1714851039392,-150.0,0.00012805,2]
[325404374,1714851039401,-150.0,0.00012806,2]
[325404375,1714851039411,-150.0,0.00012813,2]
[325404376,1714851039424,-150.0,0.00012814,2]
[325404377,1714851039434,-150.0,0.00012818,2]
[325404378,1714851039443,-150.0,0.00012819,2]
[325404379,1714851039453,-150.0,0.00012822,2]
[325404380,1714851039464,-150.0,0.00012823,2]
[325404381,1714851039473,-150.0,0.00012825,2]
[325404382,1714851039483,-150.0,0.00012825,2]
[325404383,1714851039493,-150.0,0.0001283,2]
[325404384,1714851039505,-150.0,0.00012835,2]
[325404385,1714851039515,-150.0,0.00012836,2]
[325404386,1714851039525,-150.0,0.00012836,2]
[325404387,1714851039534,-150.0,0.00012837,2]
[325404388,1714851039543,-3496.01874964,0.00012837,2]
[325404389,1714851039553,-150.0,0.00012839,2]
[325404390,1714851039562,-150.0,0.00012842,2]
[325404391,1714851039573,-150.0,0.00012846,2]
[325404392,1714851039583,-150.0,0.0001285,2]
[325404393,1714851039592,-150.0,0.00012851,2]
[325404394,1714851039602,-150.0,0.00012853,2]
[325404395,1714851039610,-150.0,0.00012857,2]
[325404396,1714851039620,-150.0,0.0001286,2]
[325404397,1714851039629,-150.0,0.00012864,2]
[325404398,1714851039638,-150.0,0.00012868,2]
[325404399,1714851039647,-150.0,0.00012876,2]
[325404400,1714851039657,-150.0,0.00012877,2]
[325404401,1714851039666,-150.0,0.00012884,2]
[325404402,1714851039677,-150.0,0.00012887,2]
[325404403,1714851039686,-150.0,0.0001289,2]
[325404404,1714851039696,-150.0,0.00012891,2]
[325404405,1714851039706,-150.0,0.00012892,2]
[325404406,1714851039716,-150.0,0.00012892,2]
[325404407,1714851039726,-150.0,0.00012894,2]
[325404408,1714851039735,-150.0,0.00012895,2]
[325404409,1714851039745,-150.0,0.00012896,2]
[325404410,1714851039754,-150.0,0.00012896,2]
[325404411,1714851039764,-150.0,0.00012897,2]
[325404412,1714851039773,-533.39060223,0.00012898,2]
[325404413,1714851039783,-604.0,0.00012898,2]
[325404414,1714851039792,-500.0,0.00012899,2]
[325404415,1714851039801,-10000.0,0.000129,2]
[325404416,1714851039811,-3378.5697,0.000129,2]
[325404417,1714851039820,-1000.0,0.000129,2]
[325404418,1714851039829,-202522.7015,0.000129,2]
[325404419,1714851039839,-512.1768,0.000129,2]
[325404420,1714851039848,-781.8025,0.000129,2]
[325404421,1714851039857,-5360.8965,0.000129,2]
[325404422,1714851039867,-150.0,0.000129,2]
[325404423,1714851039876,-169.9918662,0.000129,2]
[325404424,1714851039885,-166.27153992,0.000129,2]
[325404425,1714851039894,-5090.6005502,0.000129,2]
[325404426,1714851039903,-180.7562889,0.000129,2]
[325404427,1714851039913,-1919.11427355,0.000129,2]
[325404428,1714851039922,-1446.89163045,0.000129,2]
[325404429,1714851039931,-310.64111176,0.000129,2]
[325404430,1714851039941,-150.0,0.00012904,2]
[325404431,1714851039951,-150.0,0.00012904,2]
[325404432,1714851039960,-150.0,0.00012904,2]
[325404433,1714851039969,-150.0,0.00012905,2]
[325404434,1714851039979,-150.0,0.00012912,2]
[325404435,1714851039988,-150.0,0.00012914,2]
[325404436,1714851039997,-150.0,0.00012915,2]
[325404437,1714851040007,-150.0,0.00012919,2]
[325404438,1714851040016,-150.0,0.00012921,2]
[325404439,1714851040025,-150.0,0.00012922,2]
[325404440,1714851040035,-150.0,0.00012925,2]
[325404441,1714851040044,-150.0,0.00012927,2]
[325404442,1714851040053,-150.0,0.00012931,2]
[325404443,1714851040063,-150.0,0.00012932,2]
[325404444,1714851040072,-150.0,0.00012932,2]
[325404445,1714851040082,-150.0,0.00012939,2]
[325404446,1714851040091,-150.0,0.00012943,2]
[325404447,1714851040101,-150.0,0.00012945,2]
[325404448,1714851040110,-150.0,0.00012949,2]
[325404449,1714851040119,-300.0,0.00012958,2]
[325404450,1714851040128,-150.0,0.00012958,2]
[325404451,1714851040138,-150.0,0.00012961,2]
[325404452,1714851040147,-150.0,0.00012963,2]
[325404453,1714851040158,-150.0,0.00012965,2]
[325404454,1714851040167,-150.0,0.00012967,2]
[325404455,1714851040176,-150.0,0.00012968,2]
[325404456,1714851040185,-150.0,0.0001297,2]
[325404457,1714851040195,-150.0,0.00012976,2]
[325404458,1714851040204,-150.0,0.0001298,2]
[325404459,1714851040213,-150.0,0.00012981,2]
[325404460,1714851040223,-150.0,0.00012981,2]
[325404461,1714851040232,-150.0,0.00012984,2]
[325404462,1714851040242,-150.0,0.00012985,2]
[325404463,1714851040251,-150.0,0.00012987,2]
[325404464,1714851040261,-150.0,0.00012989,2]
[325404465,1714851040271,-707.9573346,0.00012989,2]
[325404466,1714851040280,-607.402373,0.00012991,2]
[325404467,1714851040290,-506.8474115,0.00012991,2]
[325404468,1714851040300,-10000.0,0.00012991,2]
[325404469,1714851040309,-150.0,0.00012992,2]
[325404470,1714851040319,-780.9689381,0.00012998,2]
[325404471,1714851040328,-258.47419654,0.00012998,2]
[325404472,1714851040339,-5642.98712746,0.00012998,2]
[325404473,1714851040349,-1546.91709911,0.00012998,2]
[325404474,1714851040358,-155.83351547,0.00012998,2]
[325404475,1714851040368,-9067.32844565,0.00012998,2]
[325404476,1714851040377,-155.0,0.00012998,2]
[325404477,1714851040387,-1269.872327,0.00012999,2]
[325404478,1714851040396,-190.1670451,0.00012999,2]
[325404479,1714851040405,-163.89953157,0.00012999,2]
[325404480,1714851040418,-3079.97215406,0.00012999,2]
[325404481,1714851040427,-2638.96505361,0.00012999,2]
[325404482,1714851040437,-1297.77927166,0.00012999,2]
[325404483,1714851040446,-1245.66076353,0.00012999,2]
[325404484,1714851040457,-294.82670334,0.00012999,2]
[325404485,1714851040465,-500.0,0.00012999,2]
[325404486,1714851040475,-1984914.11323467,0.00013,2]
[325404487,1714851040489,-137908.8563087,0.00013,2]
[325404488,1714851040502,-18072.6546,0.00013,2]
[325404489,1714851040545,-387.2,0.00013,2]
[325404490,1714851041779,-150.0,0.00012731,2]
[325404491,1714851041790,-150.0,0.00012732,2]
[325404492,1714851041799,-150.0,0.00012735,2]
[325404493,1714851041809,-150.0,0.00012742,2]
[325404494,1714851041819,-150.0,0.00012743,2]
[325404495,1714851041829,-150.0,0.00012743,2]
[325404496,1714851041840,-150.0,0.00012745,2]